bitfinex-derivatives/quotes_SOLF0:USTF0_20241222
["timestamp","ask_amount","ask_price","bid_price","bid_amount"]
[1734844167569,2.8066,178.27,178.2,2.8076]
[1734844168364,2.8066,178.27,178.18,1.7157]
[1734844168365,27.01223208,178.31,178.18,1.7157]
[1734844168572,1.6264,178.33,178.1,3.3013]
[1734844168573,27.01223208,178.27,178.1,3.3013]
[1734844168774,33.35223208,178.27,178.11,1.7336]
[1734844168971,1.6886,178.26,178.11,1.7336]
[1734844169469,2.8076,178.21,178.15,2.8084]
[1734844169771,1.6267,178.25,178.11,1.7336]
[1734844170976,4.4953,178.26,178.11,1.7336]
[1734844171178,27.01223208,178.27,178.11,1.7336]
[1734844171378,2.8068,178.25,178.11,1.7336]
[1734844171681,33.35223208,178.31,178.11,1.7336]
[1734844171878,2.8064,178.28,178.11,1.7336]
[1734844172080,27.01223208,178.31,178.12,6.34]
[1734844172486,27.01223208,178.31,178.17,2.8081]
[1734844172678,27.01223208,178.27,178.12,6.34]
[1734844172879,1.6264,178.26,178.12,6.34]
[1734844173780,2.8069,178.25,178.18,2.8078]
[1734844174687,2.8069,178.25,178.12,6.34]
[1734844174986,33.03223208,178.31,178.12,6.34]
[1734844176391,2.8065,178.27,178.22,2.8073]
[1734844176589,2.8065,178.27,178.12,6.34]
[1734844177588,2.8065,178.27,178.21,2.8074]
[1734844177783,2.8063,178.29,178.12,6.34]
[1734844177980,27.01223208,178.35,178.13,27.01223208]
[1734844178282,1.6281,178.36,178.14,1.03141319]
[1734844178478,4.4333,178.36,178.14,1.03141319]
[1734844178988,4.4333,178.36,178.15,1.03122603]
[1734844179189,1.6281,178.36,178.16,59.41122603]
[1734844179483,27.01223208,178.39,178.17,28.04345811]
[1734844179687,30.32763208,178.43,178.18,1.03122603]
[1734844179883,2.8045,178.4,178.21,27.01223208]
[1734844180187,30.32763208,178.43,178.35,2.8052]
[1734844180388,30.32763208,178.43,178.3,6.02]
[1734844180389,3.3154,178.43,178.3,6.02]
[1734844180577,1.6268,178.43,178.31,7.7533]
[1734844180781,1.6886,178.52,178.32,1.6354]
[1734844180980,2.8032,178.49,178.32,3.4045]
[1734844181185,28.63903208,178.51,178.37,2.8048]
[1734844181481,2.8036,178.46,178.32,3.4045]
[1734844181687,28.63903208,178.51,178.36,6.02]
[1734844183592,2.8035,178.46,178.39,2.8046]
[1734844184086,2.8037,178.45,178.38,2.8048]
[1734844184286,2.8037,178.45,178.32,9.4245]
[1734844184891,2.804,178.43,178.32,9.4245]
[1734844185091,27.01223208,178.47,178.32,9.4245]
[1734844185488,2.8039,178.44,178.37,2.8049]
[1734844187196,2.8039,178.44,178.38,2.8048]
[1734844187992,27.01223208,178.47,178.32,9.4245]
[1734844188292,2.8036,178.46,178.32,9.4245]
[1734844188685,1.6268,178.51,178.39,2.8045]
[1734844188686,28.63903208,178.51,178.39,2.8045]
[1734844188887,2.8033,178.48,178.32,9.4245]
[1734844189284,5.74,178.5,178.32,9.4245]
[1734844189699,2.8038,178.45,178.32,9.4245]
[1734844190792,24.72145817,178.46,178.32,9.4245]
[1734844190994,24.72145817,178.43,178.32,3.4045]
[1734844192097,2.8043,178.41,178.34,2.8053]
[1734844192302,24.72145817,178.4,178.24,24.72145817]
[1734844192492,24.72145817,178.37,178.25,3.2771]
[1734844193798,2.8051,178.36,178.29,2.8061]
[1734844194000,2.8051,178.36,178.25,3.2771]
[1734844194397,24.72145817,178.34,178.25,1.6197]
[1734844195400,2.8056,178.33,178.27,2.8065]
[1734844195999,24.72145817,178.34,178.24,1.6159]
[1734844196192,2.8057,178.32,178.26,2.8066]
[1734844196400,24.72145817,178.34,178.26,2.8066]
[1734844196993,24.72145817,178.34,178.29,2.8062]
[1734844197193,2.8052,178.36,178.24,1.6159]
[1734844197400,24.72145817,178.37,178.24,1.6159]
[1734844197694,24.72145817,178.4,178.26,24.72145817]
[1734844197901,3.242,178.42,178.27,7.3683]
[1734844198699,6.0462,178.42,178.31,2.8058]
[1734844198895,2.8042,178.42,178.27,7.3683]
[1734844199495,2.8042,178.42,178.31,2.8058]
[1734844199696,2.8042,178.42,178.27,7.3683]
[1734844200399,24.72145817,178.43,178.28,5.44]
[1734844200599,24.72145817,178.43,178.29,1.78]
[1734844200992,2.8043,178.41,178.29,1.78]
[1734844201190,24.72145817,178.43,178.29,1.78]
[1734844201391,2.8046,178.39,178.29,1.78]
[1734844201602,24.72145817,178.43,178.29,1.78]
[1734844202003,2.8045,178.41,178.34,2.8052]
[1734844202299,24.72145817,178.43,178.34,2.8052]
[1734844202497,24.72145817,178.4,178.23,24.72145817]
[1734844202693,24.72145817,178.34,178.21,5.44]
[1734844202897,2.8066,178.27,178.21,2.8074]
[1734844203096,24.72145817,178.28,178.17,1.643]
[1734844203302,24.72145817,178.25,178.16,1.674]
[1734844203503,2.8072,178.23,178.17,2.8081]
[1734844203697,7.0595,178.27,178.16,1.674]
[1734844204009,5.44,178.27,178.2,2.8075]
[1734844204301,2.8065,178.28,178.16,7.114]
[1734844204497,2.8065,178.28,178.17,1.7863]
[1734844205199,1.6195,178.32,178.17,1.7863]
[1734844205796,4.4252,178.32,178.21,2.8074]
[1734844205997,5.44,178.36,178.17,1.7863]
[1734844206304,2.8056,178.33,178.26,2.8065]
[1734844206504,26.94354576,178.37,178.22,5.44]
[1734844206806,7.0595,178.39,178.22,5.44]
[1734844206995,2.8051,178.36,178.3,2.806]
[1734844207300,1.6812,178.4,178.28,5.44]
[1734844207607,5.44,178.43,178.29,1.7795]
[1734844207804,5.44,178.43,178.29,3.517]
[1734844208199,2.8043,178.42,178.29,3.517]
[1734844209498,2.8044,178.41,178.29,3.517]
[1734844209805,5.44,178.46,178.29,3.517]
[1734844209806,26.94354576,178.43,178.29,3.517]
[1734844210800,5.44,178.46,178.29,3.517]
[1734844211001,5.44,178.46,178.34,2.8054]
[1734844211002,2.8043,178.41,178.34,2.8054]
[1734844211495,2.8043,178.41,178.29,3.517]
[1734844211701,2.8043,178.41,178.35,2.8052]
[1734844211902,2.8043,178.41,178.29,3.517]
[1734844213305,29.48457581,178.54,178.29,3.517]
[1734844213500,32.78397581,178.54,178.32,26.94354576]
[1734844213696,32.78397581,178.54,178.33,7.218]
[1734844213896,29.48457581,178.54,178.36,26.94354576]
[1734844214101,29.48457581,178.54,178.36,85.28354576]
[1734844214507,2.8021,178.55,178.48,2.8032]
[1734844215202,2.8019,178.57,178.5,2.8029]
[1734844215510,1.6207,178.59,178.46,5.44]
[1734844215705,1.6823,178.64,178.47,5.145]
[1734844215905,29.48457581,178.65,178.48,26.94354576]
[1734844216804,56.42812157,178.65,178.52,2.8025]
[1734844217108,26.94354576,178.65,178.49,5.44]
[1734844217304,1.6205,178.64,178.49,5.44]
[1734844217500,1.6205,178.64,178.47,5.145]
[1734844217705,1.6205,178.64,178.47,10.585]
[1734844217907,26.94354576,178.57,178.44,2.8037]
[1734844218107,7.0574,178.56,178.41,1.6985]
[1734844218303,1.6205,178.64,178.41,1.6985]
[1734844218507,1.6174,178.63,178.41,1.6985]
[1734844219717,2.8013,178.61,178.53,2.8024]
[1734844220322,4.4183,178.63,178.54,2.8022]
[1734844220532,1.6174,178.63,178.5,3.4388]
[1734844220924,2.801,178.62,178.5,3.4388]
[1734844221130,2.801,178.62,178.55,2.8021]
[1734844221631,2.8013,178.6,178.53,2.8023]
[1734844221826,1.6174,178.63,178.5,3.4388]
[1734844222512,2.8008,178.64,178.5,3.4388]
[1734844223013,2.8005,178.66,178.5,3.4388]
[1734844223218,5.44,178.68,178.5,3.4388]
[1734844223807,8.2401,178.68,178.61,2.8011]
[1734844224007,8.2401,178.68,178.57,5.44]
[1734844224210,2.8001,178.68,178.57,5.44]
[1734844224817,1.6175,178.69,178.57,5.44]
[1734844225016,4.4174,178.69,178.61,2.8011]
[1734844225213,1.6175,178.69,178.5,3.4388]
[1734844225418,2.801,178.62,178.55,2.8021]
[1734844225613,2.801,178.62,178.5,8.8788]
[1734844225614,5.44,178.68,178.5,8.8788]
[1734844227420,2.801,178.63,178.56,2.8019]
[1734844227919,5.44,178.68,178.5,8.8788]
[1734844228720,5.44,178.68,178.5,3.4388]
[1734844228914,5.44,178.68,178.5,1.7453]
[1734844228915,26.94354576,178.66,178.5,1.7453]
[1734844229115,26.94354576,178.66,178.45,1.7763]
[1734844229419,26.94354576,178.66,178.51,2.8027]
[1734844229815,2.8015,178.59,178.53,2.8024]
[1734844230017,5.16,178.62,178.46,5.16]
[1734844230619,2.8013,178.6,178.5,2.8028]
[1734844230820,2.8013,178.6,178.46,5.16]
[1734844231719,7.9611,178.62,178.46,5.16]
[1734844231920,5.16,178.62,178.46,5.16]
[1734844232226,2.8012,178.61,178.51,2.8027]
[1734844232424,5.16,178.64,178.46,5.16]
[1734844232620,1.6802,178.63,178.45,1.7763]
[1734844232822,2.8023,178.54,178.45,1.7763]
[1734844233127,26.94354576,178.62,178.45,1.7763]
[1734844233128,5.16,178.58,178.45,1.7763]
[1734844233826,2.8024,178.54,178.48,2.8032]
[1734844234228,5.16,178.58,178.44,5.16]
[1734844234525,32.10354576,178.58,178.39,1.6674]
[1734844234734,33.223492,178.58,178.39,1.6674]
[1734844234925,2.8027,178.52,178.39,1.6674]
[1734844235124,5.16,178.57,178.39,1.6674]
[1734844235328,5.16,178.57,178.4,1.6161]
[1734844235624,2.8025,178.53,178.46,2.8034]
[1734844235830,2.8025,178.53,178.41,1.733]
[1734844236130,2.8025,178.53,178.46,2.8034]
[1734844236335,5.16,178.57,178.41,1.733]
[1734844236826,2.8026,178.53,178.46,2.8035]
[1734844237036,1.11994624,178.58,178.44,5.16]
[1734844238028,1.11994624,178.58,178.46,26.94354576]
[1734844238324,1.6802,178.63,178.46,26.94354576]
[1734844238626,2.801,178.63,178.46,26.94354576]
[1734844238933,32.10354576,178.7,178.46,26.94354576]
[1734844239135,32.10354576,178.7,178.47,1.02949674]
[1734844239328,32.10354576,178.7,178.48,1.7616]
[1734844239524,2.8007,178.65,178.48,1.7616]
[1734844239730,2.8007,178.65,178.49,1.6869]
[1734844239929,2.8007,178.65,178.5,5.16]
[1734844240434,2.8004,178.66,178.59,2.8014]
[1734844241333,2.8007,178.64,178.58,2.8016]
[1734844241536,32.10354576,178.7,178.52,5.16]
[1734844241724,32.10354576,178.7,178.51,1.7239]
[1734844241923,1.11925681,178.69,178.51,1.7239]
[1734844242426,2.8001,178.68,178.56,2.8019]
[1734844242632,1.11925681,178.69,178.57,6.7979]
[1734844243423,2.8002,178.68,178.57,6.7979]
[1734844243726,3.2649,178.73,178.57,6.7979]
[1734844243930,2.7998,178.7,178.63,2.8007]
[1734844244133,2.7998,178.7,178.57,6.7979]
[1734844244631,2.8001,178.68,178.57,6.7979]
[1734844244822,26.94354576,178.76,178.57,6.7979]
[1734844245021,4.9,178.78,178.57,6.7979]
[1734844245224,26.94354576,178.8,178.57,6.7979]
[1734844245427,26.94354576,178.8,178.58,26.94354576]
[1734844245627,26.94354576,178.8,178.7,2.7997]
[1734844245628,2.7986,178.78,178.7,2.7997]
[1734844245830,2.7986,178.78,178.68,4.9]
[1734844246033,3.2925,178.82,178.59,1.6359]
[1734844246233,2.7996,178.71,178.64,2.8006]
[1734844246428,2.7996,178.71,178.6,4.9]
[1734844246429,4.9,178.77,178.61,1.6875]
[1734844246935,2.7995,178.72,178.61,1.6875]
[1734844247433,2.7993,178.74,178.67,2.8001]
[1734844247638,4.9,178.77,178.66,4.9]
[1734844247839,26.94354576,178.8,178.66,4.9]
[1734844249137,4.9,178.81,178.66,4.9]
[1734844249640,2.7987,178.77,178.7,2.7996]
[1734844250740,4.9,178.81,178.72,2.7994]
[1734844251839,4.9,178.81,178.67,1.6245]
[1734844251840,4.9,178.81,178.7,2.7997]
[1734844252039,24.63560673,178.78,178.62,24.63560673]
[1734844252238,24.63560673,178.78,178.63,4.9]
[1734844252943,27.43420673,178.78,178.66,2.8002]
[1734844253142,24.63560673,178.78,178.64,4.9]
[1734844253641,24.63560673,178.81,178.65,24.63560673]
[1734844254046,2.7983,178.79,178.73,2.7993]
[1734844254543,2.7986,178.77,178.7,7.6996]
[1734844254742,2.7986,178.77,178.7,4.9]
[1734844256345,2.7988,178.76,178.67,4.9]
[1734844256644,24.63560673,178.81,178.67,4.9]
[1734844257248,2.7988,178.76,178.69,2.7998]
[1734844257449,24.63560673,178.75,178.63,4.9]
[1734844257642,24.63560673,178.72,178.61,1.6875]
[1734844258736,2.8004,178.67,178.61,4.4886]
[1734844259245,4.9,178.68,178.57,1.673]
[1734844259444,24.63560673,178.66,178.51,4.9]
[1734844259640,24.63560673,178.63,178.48,5.0847]
[1734844259850,2.8014,178.6,178.52,2.8025]
[1734844260147,2.8014,178.6,178.48,5.0847]
[1734844260347,2.8014,178.6,178.48,9.9847]
[1734844261141,2.8011,178.62,178.54,2.8022]
[1734844262044,1.6745,178.67,178.54,4.9]
[1734844262249,29.53560673,178.72,178.56,24.63560673]
[1734844262447,2.8001,178.68,178.6,2.8012]
[1734844263348,2.8001,178.68,178.61,2.8011]
[1734844263848,32.33500673,178.72,178.63,2.8007]
[1734844264056,32.33500673,178.72,178.6,4.9]
[1734844264057,4.9,178.72,178.6,4.9]
[1734844264250,24.63560673,178.75,178.6,4.9]
[1734844264447,2.7993,178.73,178.64,2.8006]
[1734844264642,24.63560673,178.75,178.6,4.9]
[1734844264848,24.63560673,178.78,178.6,4.9]
[1734844265150,2.799,178.75,178.68,2.8]
[1734844265352,24.63560673,178.78,178.66,4.9]
[1734844265545,2.7988,178.76,178.66,4.9]
[1734844265754,4.9,178.8,178.66,4.9]
[1734844265950,24.63560673,178.81,178.67,1.6702]
[1734844266150,3.91644312,178.82,178.75,2.7989]
[1734844266651,24.63560673,178.78,178.69,1.7644]
[1734844267050,1.11844312,178.82,178.69,1.7644]
[1734844267546,1.11844312,178.82,178.71,24.63560673]
[1734844267754,1.11844312,178.82,178.72,4.9]
[1734844268051,1.11844312,178.82,178.74,24.63560673]
[1734844268445,1.11844312,178.82,178.75,1.7004]
[1734844269445,1.11844312,178.82,178.78,2.7984]
[1734844270453,1.11844312,178.82,178.75,1.7004]
[1734844270950,1.11844312,178.82,178.81,2.798]
[1734844271143,4.4139,178.91,178.81,4.62]
[1734844271345,26.31470673,178.95,178.81,4.62]
[1734844272255,24.63560673,178.92,178.78,1.6277]
[1734844272450,1.6102,178.91,178.78,6.2477]
[1734844272753,2.7972,178.87,178.78,9.0462]
[1734844273253,2.7972,178.87,178.79,2.7983]
[1734844274048,2.7972,178.87,178.8,2.7981]
[1734844274757,2.7969,178.88,178.8,2.7981]
[1734844275059,1.6102,178.91,178.78,6.2477]
[1734844275450,1.6102,178.91,178.82,2.7978]
[1734844275649,1.6102,178.91,178.78,6.2477]
[1734844275848,24.63560673,178.89,178.78,1.6277]
[1734844276251,4.62,178.88,178.78,1.6277]
[1734844276649,4.62,178.88,178.83,2.7977]
[1734844276855,30.93470673,178.95,178.78,1.6277]
[1734844277059,30.93470673,178.95,178.8,24.63560673]
[1734844277452,30.93470673,178.95,178.79,1.6267]
[1734844277653,24.63560673,178.89,178.71,24.63560673]
[1734844277861,24.63560673,178.86,178.71,29.25560673]
[1734844278060,1.6721,178.85,178.71,29.25560673]
[1734844279358,2.7977,178.84,178.76,2.7986]
[1734844279556,1.6721,178.85,178.71,29.25560673]
[1734844279757,2.7977,178.83,178.77,2.7986]
[1734844281860,1.6721,178.85,178.71,29.25560673]
[1734844282068,4.4696,178.85,178.79,2.7982]
[1734844282566,2.7976,178.84,178.77,2.7985]
[1734844282765,2.7976,178.84,178.71,29.25560673]
[1734844282964,1.6721,178.85,178.71,29.25560673]
[1734844283765,2.7978,178.83,178.75,2.7989]
[1734844283962,2.7978,178.83,178.71,29.25560673]
[1734844284166,1.6721,178.85,178.71,29.25560673]
[1734844284367,1.6721,178.85,178.74,24.63560673]
[1734844284564,1.6096,178.88,178.74,24.63560673]
[1734844285458,1.6096,178.88,178.71,29.25560673]
[1734844285667,24.63560673,178.86,178.71,29.25560673]
[1734844286168,2.7981,178.81,178.75,2.7989]
[1734844286867,4.62,178.83,178.68,29.77590673]
[1734844287068,1.6742,178.82,178.68,34.39590673]
[1734844287471,2.7986,178.78,178.72,2.7993]
[1734844288168,24.63560673,178.74,178.58,24.63560673]
[1734844288372,29.25560673,178.74,178.59,5.0133]
[1734844288574,24.63560673,178.71,178.55,85.94718055]
[1734844288773,3.286,178.7,178.55,61.31157382]
[1734844288967,24.63560673,178.68,178.55,61.31157382]
[1734844289167,4.62,178.67,178.55,61.31157382]
[1734844289769,4.62,178.67,178.6,2.8012]
[1734844290171,2.7999,178.69,178.63,2.8008]
[1734844290471,3.286,178.7,178.63,2.8008]
[1734844290776,24.63560673,178.68,178.54,6.2409]
[1734844290969,24.63560673,178.65,178.54,1.6209]
[1734844291973,4.62,178.67,178.54,1.6209]
[1734844292169,24.63560673,178.68,178.54,1.6209]
[1734844292474,3.286,178.7,178.54,1.6209]
[1734844293474,2.8002,178.68,178.61,2.8011]
[1734844294073,2.7999,178.69,178.58,4.62]
[1734844294267,3.286,178.7,178.58,4.62]
[1734844295672,6.0859,178.7,178.58,4.62]
[1734844296081,3.286,178.7,178.58,4.62]
[1734844296274,2.7999,178.69,178.59,4.62]
[1734844296476,3.286,178.7,178.59,4.62]
[1734844296671,2.7996,178.71,178.59,4.62]
[1734844296877,24.63560673,178.74,178.59,4.62]
[1734844297171,24.63560673,178.74,178.6,3.4581]
[1734844297475,4.62,178.75,178.61,24.63560673]
[1734844297680,24.63560673,178.74,178.6,3.4581]
[1734844297882,2.8002,178.68,178.6,6.2593]
[1734844298077,1.6123,178.73,178.6,3.4581]
[1734844298679,24.63560673,178.71,178.55,24.63560673]
[1734844298880,4.38,178.7,178.56,4.38]
[1734844299681,24.63560673,178.68,178.56,4.38]
[1734844300182,2.8008,178.64,178.57,2.8016]
[1734844300380,2.8008,178.64,178.56,4.38]
[1734844301580,2.8008,178.64,178.59,2.8014]
[1734844302081,2.8004,178.66,178.56,4.38]
[1734844302775,2.8002,178.67,178.56,4.38]
[1734844302975,4.38,178.7,178.56,4.38]
[1734844303377,1.6747,178.72,178.58,24.63560673]
[1734844303577,2.7999,178.7,178.59,1.7748]
[1734844304075,4.38,178.76,178.61,24.63560673]
[1734844304281,4.38,178.76,178.62,4.38]
[1734844304476,2.7991,178.75,178.68,2.8]
[1734844305075,3.2521,178.82,178.64,24.63560673]
[1734844305076,4.38,178.8,178.64,24.63560673]
[1734844305280,4.38,178.8,178.65,1.6559]
[1734844305475,29.01560673,178.81,178.67,24.63560673]
[1734844305680,4.38,178.81,178.68,6.0255]
[1734844305881,1.6137,178.82,178.68,6.0255]
[1734844306078,2.7979,178.82,178.75,2.7988]
[1734844306384,4.38,178.86,178.73,4.38]
[1734844306579,4.38,178.86,178.74,4.38]
[1734844306776,24.63560673,178.76,178.71,2.7995]
[1734844306978,29.01560673,178.83,178.64,24.63560673]
[1734844307179,29.01560673,178.83,178.67,24.63560673]
[1734844307389,24.63560673,178.8,178.68,1.7394]
[1734844307585,1.6137,178.79,178.68,1.7394]
[1734844307880,4.38,178.78,178.68,1.7394]
[1734844308682,2.7993,178.73,178.68,1.7394]
[1734844309083,24.63560673,178.77,178.58,24.63560673]
[1734844309286,26.30840673,178.77,178.59,4.38]
[1734844309485,26.30840673,178.77,178.59,6.0054]
[1734844309687,24.63560673,178.74,178.59,1.6254]
[1734844309895,4.38,178.73,178.59,1.6254]
[1734844310480,4.38,178.73,178.58,1.7273]
[1734844310684,31.19641025,178.73,178.58,1.7273]
[1734844311186,31.19641025,178.73,178.58,4.5288]
[1734844311582,2.8006,178.65,178.58,4.5288]
[1734844311886,4.38,178.67,178.54,1.6254]
[1734844312077,2.8011,178.62,178.51,1.7273]
[1734844312286,5.994,178.66,178.51,1.7273]
[1734844312581,1.614,178.66,178.51,1.7273]
[1734844312886,1.6728,178.77,178.51,1.7273]
[1734844312887,2.8003,178.67,178.51,1.7273]
[1734844313282,2.8004,178.66,178.51,1.7273]
[1734844313686,2.8004,178.66,178.55,2.802]
[1734844313887,2.8004,178.66,178.56,6.0599]
[1734844314083,2.8005,178.65,178.56,6.0599]
[1734844314289,2.8005,178.65,178.59,2.8014]
[1734844314783,4.38,178.7,178.56,6.0599]
[1734844315985,4.38,178.7,178.56,1.6799]
[1734844316386,26.81641025,178.73,178.56,1.6799]
[1734844316584,4.38,178.72,178.56,1.6799]
[1734844316782,2.8,178.69,178.6,2.8012]
[1734844316986,2.8,178.69,178.56,1.6799]
[1734844317285,2.8,178.69,178.59,2.8013]
[1734844317486,4.38,178.72,178.56,1.6799]
[1734844317885,2.8,178.69,178.61,2.801]
[1734844318089,4.38,178.72,178.61,2.801]
[1734844318285,26.81641025,178.73,178.56,1.6799]
[1734844318286,4.38,178.71,178.56,1.6799]
[1734844318587,4.38,178.71,178.62,2.8009]
[1734844318588,2.8001,178.68,178.62,2.8009]
[1734844318788,4.38,178.73,178.56,1.6799]
[1734844319390,2.7996,178.71,178.61,2.8011]
[1734844319592,2.7996,178.71,178.62,1.6458]
[1734844320190,2.7994,178.72,178.62,1.6458]
[1734844320491,2.7994,178.72,178.63,1.7093]
[1734844321192,26.81641025,178.81,178.63,1.7093]
[1734844321392,4.38,178.8,178.64,1.7546]
[1734844321780,2.7984,178.79,178.64,1.7546]
[1734844321980,1.614,178.82,178.64,1.7546]
[1734844322383,6.0559,178.83,178.64,1.7546]
[1734844322689,22.4126,178.93,178.65,26.81641025]
[1734844322690,11.71471629,178.87,178.65,26.81641025]
[1734844322894,11.71471629,178.87,178.69,26.81641025]
[1734844323192,7.33471629,178.87,178.69,26.81641025]
[1734844323491,7.33471629,178.87,178.73,26.81641025]
[1734844323696,7.33471629,178.87,178.74,9.3356]
[1734844323883,7.33471629,178.93,178.77,26.81641025]
[1734844324493,7.33471629,178.93,178.81,26.81641025]
[1734844324690,7.33471629,178.93,178.91,2.7964]
[1734844324888,19.46805952,178.94,178.9,4.38]
[1734844325087,28.52669306,179.03,178.91,4.38]
[1734844325288,28.52669306,179.03,178.92,4.38]
[1734844325690,28.52669306,179.03,178.88,4.38]
[1734844325890,26.81641025,178.99,178.82,1.6551]
[1734844326090,2.796,178.94,178.86,2.7972]
[1734844326387,4.38,178.98,178.82,1.6551]
[1734844326886,2.796,178.94,178.85,2.7973]
[1734844327086,2.796,178.94,178.82,1.6551]
[1734844327296,4.38,178.98,178.82,1.6551]
[1734844328484,2.7958,178.95,178.82,1.6551]
[1734844328993,2.7958,178.95,178.88,2.7969]
[1734844329490,4.3,178.99,178.86,4.3]
[1734844330094,2.7958,178.95,178.86,4.3]
[1734844330794,4.3,178.99,178.86,4.3]
[1734844330996,1.6432,179.02,178.86,4.3]
[1734844331198,2.7944,179.05,178.87,26.81641025]
[1734844331387,1.7429,179.07,178.87,26.81641025]
[1734844331692,1.7429,179.07,178.98,2.7952]
[1734844332394,60.89703401,179.14,178.96,4.3]
[1734844332395,4.3,179.12,178.96,4.3]
[1734844332591,4.3,179.12,178.96,28.85378023]
[1734844332792,2.7932,179.12,179.04,2.7944]
[1734844333099,1.721,179.13,179.02,4.3]
[1734844333996,1.721,179.13,179.07,2.7939]
[1734844334200,26.68541766,179.21,179.08,4.3]
[1734844334398,87.96221723,179.31,179.08,4.3]
[1734844334399,5.0621,179.25,179.08,4.3]
[1734844334701,5.27243679,179.24,179.08,4.3]
[1734844334896,2.7921,179.19,179.11,2.7932]
[1734844335102,4.3,179.24,179.08,4.3]
[1734844335301,1.721,179.25,179.07,26.68541766]
[1734844335600,1.721,179.25,179.08,7.7099]
[1734844335801,1.721,179.25,179.08,3.4099]
[1734844336101,4.3,179.24,179.09,4.3]
[1734844336302,2.7915,179.23,179.14,2.7928]
[1734844336693,2.7915,179.23,179.09,4.3]
[1734844337595,2.7915,179.23,179.13,2.793]
[1734844337804,2.7915,179.23,179.14,4.3]
[1734844338096,4.5123,179.25,179.14,4.3]
[1734844338303,1.666,179.29,179.14,4.3]
[1734844338902,2.791,179.26,179.14,4.3]
[1734844339106,1.666,179.29,179.12,4.3]
[1734844339303,1.666,179.29,179.16,2.7925]
[1734844339506,1.666,179.29,179.12,4.3]
[1734844339507,1.666,179.29,179.13,1.6262]
[1734844339816,26.68541766,179.28,179.11,4.3]
[1734844340106,26.68541766,179.28,179.08,3.4099]
[1734844340298,0.97241668,179.27,179.08,1.6833]
[1734844340499,26.68541766,179.23,179.03,1.6262]
[1734844340695,5.27158837,179.22,179.03,5.9262]
[1734844340910,4.3,179.22,179.03,5.9262]
[1734844341206,1.6294,179.21,179.03,5.9262]
[1734844341708,26.68541766,179.18,178.95,28.31331766]
[1734844342005,26.68541766,179.14,178.95,1.6279]
[1734844342610,64.0794,179.17,178.94,2.7959]
[1734844342611,26.68541766,179.1,178.94,2.7959]
[1734844342807,7.7399,179.09,178.9,4.3]
[1734844343009,7.7399,179.09,178.91,4.3]
[1734844343305,7.7399,179.09,178.91,30.98541766]
[1734844343704,1.6872,179.09,178.91,30.98541766]
[1734844343905,4.3,179.15,178.95,26.68541766]
[1734844344107,3.4399,179.16,178.96,4.3]
[1734844344308,3.4399,179.16,179.04,2.7944]
[1734844344508,3.4399,179.16,179.02,4.3]
[1734844344709,3.4399,179.16,179.01,4.3]
[1734844344913,3.4399,179.16,178.95,26.68541766]
[1734844344914,4.3,179.15,178.95,26.68541766]
[1734844345107,4.3,179.15,178.96,4.3]
[1734844345311,2.7934,179.11,179.03,2.7945]
[1734844345505,2.7934,179.11,178.96,4.3]
[1734844345708,4.3,179.14,178.96,4.3]
[1734844345912,2.7932,179.12,179.04,2.7944]
[1734844346109,4.3,179.14,179.04,2.7944]
[1734844346709,2.7931,179.13,179.06,2.7941]
[1734844347009,4.3,179.14,178.98,4.3]
[1734844347609,1.6794,179.17,179.0,26.68541766]